{"text_format":"1","workbook":"xlsx","n_sheets":3,"sheets":["申込書（記載例）","申込書","回答書"],"not_rendered":{"charts":0,"images":2,"macros":1,"external_links":0,"defined_names":13,"comments":0,"pivot_tables":0},"unopened":[],"bounds":{"document_bytes":16777216,"sheet_cells":100000,"rows_first":2000,"rows_last":500,"rows_between":2000,"halvings":0,"cell_chars":16384,"cell_head_chars":4096},"cells_cut":0,"cells_raw":0,"read":"whole","date_system":"1900"}

{"sheet":"申込書（記載例）","index":0,"n_rows":274,"n_cols":135,"rows_kept":274,"cut":false,"hidden":false,"merged":[[0,0,0,8],[1,6,1,8],[2,6,2,8],[4,1,4,3],[7,1,11,1],[7,2,7,3],[7,4,7,8],[8,2,8,3],[8,4,8,8],[9,2,9,3],[10,2,10,3],[10,4,10,5],[10,7,10,8],[11,2,11,5],[11,6,11,8],[14,4,15,4],[15,6,15,8],[9,4,9,5],[9,7,9,8],[12,3,12,4],[12,5,12,8],[13,2,13,3],[13,4,13,5],[13,6,13,8],[14,6,14,8],[25,1,25,8],[16,1,16,3],[16,4,16,5],[16,6,16,7],[18,1,18,8],[21,1,21,8],[23,1,23,8]]}
["事前相談申込書",null,null,null,null,null,null,null,null,null,null,null,null,null,null,null,null,null,null,null,null,null,null,null,null,null,null,null,null,null,null,null,null,null,null,null,null,null,null,null,null,null,null,null,null,null,null,null,null,null,null,null,null,null,null,null,null,null,null,null,null,null,"添付書類１",null,null,null,null,null,null,null,null,null,null,null,null,null,null,null,null,null,null,null,null,null,null,null,null,null,null,null,null,null,null,null,null,null,null,null,null,null,null,null,null,null,null,null,null,null,null,null,null,null,null,null,null,null,null,null,null,null,null,null,null,null,null,null,null,null,null,null,null,null,null,null,"添付書類２"]
[null,null,null,null,null,null,"様式 CK1-20220401",null,null,null,"◆発電設備等設置場所の位置図",null,null,null,null,null,null,null,null,null,null,null,null,null,null,null,null,null,null,null,null,null,null,"※以下のスペースに貼り付けてください。"]
[null,null,null,null,null,"申込日","2024-07-01"]
[]
[null,"中部電力パワーグリッド株式会社",null,null,"御中"]
[]
[null,"１．申込みの概要"]
[null,"依頼者","会社名",null,"中部電力パワーグリッド株式会社"]
[null,null,"所在地",null,"愛知県名古屋市東区東新町１"]
[null,null,"所属・担当者",null,"再エネ事業部　中電　太郎",null,"電話番号","090-1111-1111"]
[null,null,"E-mail",null,"Chuden.Taro@chuden.co.jp",null,"FAX","052-111-1111"]
[null,null,"一般送配電事業者又は配電事業者の同一法人又は親子法人等　該当有無※1",null,null,null,"□　有　 　□　無"]
[null,"発電設備等の\n設置場所","静岡県","静岡市葵区",null,"牧ヶ谷"]
[null,"発電設備等の種類","太陽光",null,"連系先一般送配電事業者\n又は配電事業者",null,"中部電力パワーグリッド株式会社"]
[null,"発電設備等容量",30000,"kW","希望連系点※2","高圧連系"]
[null,"最大受電電力※3",30000,"kW",null,"特高連系"]
[null,null,null,null,"希望受電電圧※4",null,77,null,"kV"]
[]
[null,"※1 送電系統を運用する一般送配電事業者又は配電事業者の同一法人又は親子法人等である特定系統連系希望者（最大受電電力の\n    合計値が１万キロワット以上の発電設備等の連系等を希望する者）の申込み先は、電力広域的運営推進機関となります。\n※2 希望する送配電設備の連系点がありましたら、電柱番号・送電線名等をご記入ください。\n※3 電力系統側に流出する最大電力（発電設備容量－自家消費電力）をご記入ください（自家消費電力が不明の場合は記入不要です。）。\n※4 希望する連系電圧をご記入ください。\n"]
[null,"２．添付書類 （※添付書類がある場合のみご記入ください。）"]
[]
[null,"　・　発電設備等設置場所の位置図"]
[]
[null,"＜注意事項＞\n・ 特別高圧以上の送電系統に関しては、各一般送配電事業者がホームページ上で公表している系統連系制約マッピング情報でも連系制限が想定される地域を確認することができます。\n・ 申込書１枚につき１箇所の連系点について確認いたします。検討料は不要です。\n・ 本申込書に対する回答内容は以下のとおりです。\n【希望受電電圧が高圧であって、配電用変電所が存在する送電系統の場合】\n　(1)配電用変電所における配電用変圧器の熱容量に起因する連系制限の有無。連系制限がある場合\n　　には配電用変電所における配電用変圧器の熱容量から算定される連系可能な最大受電電力\n　(2)最大受電電力に対してバンク逆潮流（配電用変電所における配電用変圧器の高圧側から特別高\n　　圧側に流れる潮流をいいます。）の発生に伴う連系制限がある場合は、バンク逆潮流の対策工事\n　　を実施せずに連系可能な最大受電電力。\n　(3)想定する連系点から連系を予定する配電用変電所までの既設配電線路亘長\n【希望受電電圧が高圧であって、配電用変電所が存在しない一部の離島系統の場合】\n　(1)高圧流通設備の熱容量に起因する連系制限の有無。連系制限がある場合には高圧流通設備の\n　　熱容量から算定される連系可能な最大受電電力\n　(2)想定する連系点から始点となる電気所までの既設高圧流通設備の線路亘長\n【希望受電電圧が特別高圧である場合】\n　(1)送変電設備の熱容量に起因する連系制限の有無。連系制限がある場合には送変電設備の熱容量\n　　から算定される連系可能な最大受電電力\n　(2)想定する連系点から発電設備等の設置場所までの直線距離\n・ 本申込書に対する回答内容は、希望する送電系統への連系可否を確定するものではありません。\n・ 本申込書により得た依頼者等の情報については、連系制限有無の確認および申込状況の管理、\n　　統計に使用されます。また、電力広域的運営推進機関の送配電等業務指針に基づき、一般送配電\n　　事業者又は配電事業者に依頼された申込内容の一部を電力広域的運営推進機関に報告する場合がありま\n    す。\n    ※　連系制限とは既設送変電設備の空き容量不足等により設備増強（アクセス線新設を除く）が必要な\n      場合をいいます。\n"]
[null,null,null,null,null,null,null,null,"以　上"]
[null,"目的外使用・開示禁止"]
[null,"太陽光"]
[null,"風力"]
[null,"水力"]
[null,"バイオマス"]
[null,"地熱"]
[null,"蓄電池"]
[null,"以下のデータ（B～J）を管理表へ値貼付"]
[null,"↓"]
[null,{"$f":"E8","v":"中部電力パワーグリッド株式会社"},{"$f":"E10","v":"再エネ事業部　中電　太郎"},{"$f":"H10","v":"090-1111-1111"},{"$f":"E11","v":"Chuden.Taro@chuden.co.jp"},{"$f":"C13&D13&F13","v":"静岡県静岡市葵区牧ヶ谷"},{"$f":"C14","v":"太陽光"},{"$f":"C15","v":30000},{"$f":"C16","v":30000},{"$f":"H15","v":0}]
[]
[]
[null,"市町村名","該当営業所","⇒",{"$f":"VLOOKUP(D13,B39:C274,2,0)","v":"静岡"}]
[null,"名古屋市千種区","中",null,null,null,"電圧"]
[null,"名古屋市東区","中",null,null,null,11]
[null,"名古屋市北区","北",null,null,null,22]
[null,"名古屋市西区","北",null,null,null,33]
[null,"名古屋市中村区","中、中村",null,"JR東海道本線以東は「中営業所」",null,66]
[null,"名古屋市中区","中",null,null,null,77]
[null,"名古屋市昭和区","熱田",null,null,null,110]
[null,"名古屋市瑞穂区","熱田",null,null,null,132]
[null,"名古屋市熱田区","熱田",null,null,null,154]
[null,"名古屋市中川区","港",null,null,null,187]
[null,"名古屋市港区","港",null,null,null,220]
[null,"名古屋市南区","緑",null,null,null,275]
[null,"名古屋市守山区","旭名東",null,null,null,500]
[null,"名古屋市緑区","緑"]
[null,"名古屋市名東区","旭名東"]
[null,"名古屋市天白区","天白"]
[null,"豊橋市","豊橋"]
[null,"岡崎市","岡崎"]
[null,"一宮市","一宮"]
[null,"瀬戸市","旭名東"]
[null,"半田市","半田"]
[null,"春日井市","春日井"]
[null,"豊川市","豊川"]
[null,"津島市","津島"]
[null,"碧南市","刈谷"]
[null,"刈谷市","刈谷"]
[null,"豊田市","豊田"]
[null,"安城市","刈谷"]
[null,"西尾市","西尾"]
[null,"蒲郡市","岡崎"]
[null,"犬山市","小牧"]
[null,"常滑市","常滑"]
[null,"江南市","小牧"]
[null,"小牧市","小牧"]
[null,"稲沢市","津島、一宮",null,"平和町以外は「一宮営業所」"]
[null,"新城市","新城"]
[null,"東海市","緑"]
[null,"大府市","緑"]
[null,"知多市","常滑"]
[null,"知立市","刈谷"]
[null,"尾張旭市","旭名東"]
[null,"高浜市","刈谷"]
[null,"岩倉市","小牧"]
[null,"豊明市","緑"]
[null,"日進市","天白"]
[null,"田原市","田原"]
[null,"愛西市","港、津島",null,"JR関西本線以南は「港営業所」"]
[null,"清須市","北、中村",null,"旧西春日井郡春日町以外は「中村営業所」"]
[null,"北名古屋市","北"]
[null,"弥富市","港、津島",null,"JR関西本線以南は「港営業所」"]
[null,"みよし市","豊田"]
[null,"あま市","中村、津島",null,"旧海部郡甚目寺町は「中村営業所」、旧海部郡七宝町、美和町は「津島営業所」"]
[null,"長久手市","旭名東"]
[null,"愛知郡東郷町","天白"]
[null,"西春日井郡豊山町","北"]
[null,"丹羽郡大口町","小牧"]
[null,"丹羽郡扶桑町","小牧"]
[null,"海部郡大治町","中村"]
[null,"海部郡蟹江町","港"]
[null,"海部郡飛島村","港"]
[null,"知多郡阿久比町","半田"]
[null,"知多郡東浦町","半田"]
[null,"知多郡南知多町","半田"]
[null,"知多郡美浜町","半田"]
[null,"知多郡武豊町","半田"]
[null,"額田郡幸田町","岡崎"]
[null,"北設楽郡設楽町","新城"]
[null,"北設楽郡東栄町","新城"]
[null,"北設楽郡豊根村","新城"]
[null,"静岡市葵区","静岡"]
[null,"静岡市駿河区","静岡"]
[null,"静岡市清水区","清水"]
[null,"浜松市中央区","浜松",null,"東名高速道路以北以外は「浜北営業所」、旧引差郡引差町、旧細江町、旧三ヶ日町は「細江SS」"]
[null,"浜松市浜名区","浜北"]
[null,"浜松市天竜区","天竜"]
[null,"富士宮市","清水"]
[null,"島田市","島田"]
[null,"富士市","清水"]
[null,"磐田市","磐田"]
[null,"焼津市","藤枝"]
[null,"掛川市","掛川"]
[null,"藤枝市","藤枝"]
[null,"袋井市","掛川、磐田",null,"旧磐田郡浅羽町以外は「掛川営業所」"]
[null,"湖西市","新居"]
[null,"御前崎市","掛川"]
[null,"菊川市","掛川"]
[null,"牧之原市","島田"]
[null,"榛原郡吉田町","島田"]
[null,"榛原郡川根本町","島田"]
[null,"周智郡森町","掛川"]
[null,"津市","津、伊賀",null,"旧安芸郡芸濃町、美杉町太郎生以外は「津営業所」"]
[null,"四日市市","四日市"]
[null,"伊勢市","伊勢"]
[null,"松阪市","松阪"]
[null,"桑名市","桑名"]
[null,"鈴鹿市","鈴鹿"]
[null,"名張市","名張"]
[null,"尾鷲市","尾鷲"]
[null,"亀山市","鈴鹿"]
[null,"鳥羽市","伊勢"]
[null,"熊野市","尾鷲"]
[null,"いなべ市","桑名"]
[null,"志摩市","志摩"]
[null,"伊賀市","伊賀"]
[null,"桑名郡木曽岬町","桑名"]
[null,"員弁郡東員町","桑名"]
[null,"三重郡菰野町","四日市"]
[null,"三重郡朝日町","桑名"]
[null,"三重郡川越町","桑名"]
[null,"多気郡多気町","松阪"]
[null,"多気郡明和町","松阪"]
[null,"多気郡大台町","大台"]
[null,"度会郡玉城町","伊勢"]
[null,"度会郡度会町","伊勢"]
[null,"度会郡大紀町","松阪"]
[null,"度会郡南伊勢町","伊勢、志摩",null,"旧度会郡南勢町は「志摩SS」"]
[null,"北牟婁郡紀北町","尾鷲"]
[null,"岐阜市","岐阜、各務原",null,"旧羽島郡柳津町以外は「岐阜営業所」"]
[null,"大垣市","大垣"]
[null,"高山市","高山"]
[null,"多治見市","多治見"]
[null,"関市","関"]
[null,"中津川市","中津川"]
[null,"美濃市","関"]
[null,"瑞浪市","加茂、多治見",null,"日吉町松野以外は「多治見営業所」"]
[null,"羽島市","各務原、大垣",null,"桑原町西子藪以外は「各務原営業所」"]
[null,"恵那市","中津川"]
[null,"美濃加茂市","加茂"]
[null,"土岐市","多治見"]
[null,"各務原市","各務原"]
[null,"可児市","加茂、多治見",null,"久々利太平以外は「加茂営業所」"]
[null,"山県市","岐阜、関",null,"相戸、柿野、出戸、船越以外は「岐阜営業所」"]
[null,"瑞穂市","岐阜、大垣",null,"呂久以外は「岐阜営業所」"]
[null,"飛騨市","高山"]
[null,"本巣市","岐阜"]
[null,"郡上市","八幡"]
[null,"下呂市","萩原"]
[null,"海津市","大垣"]
[null,"羽島郡岐南町","各務原"]
[null,"羽島郡笠松町","各務原"]
[null,"養老郡養老町","大垣"]
[null,"不破郡垂井町","大垣"]
[null,"不破郡関ケ原町","大垣"]
[null,"安八郡神戸町","大垣、揖斐川",null,"西座倉は「揖斐川SS」"]
[null,"安八郡輪之内町","大垣"]
[null,"安八郡安八町","大垣"]
[null,"揖斐郡揖斐川町","揖斐川"]
[null,"揖斐郡大野町","揖斐川"]
[null,"揖斐郡池田町","揖斐川"]
[null,"本巣郡北方町","岐阜"]
[null,"加茂郡坂祝町","加茂"]
[null,"加茂郡富加町","関"]
[null,"加茂郡川辺町","加茂"]
[null,"加茂郡七宗町","加茂"]
[null,"加茂郡八百津町","加茂、中津川",null,"篠原以外は「加茂営業所」"]
[null,"加茂郡白川町","加茂"]
[null,"加茂郡東白川村","加茂"]
[null,"可児郡御嵩町","加茂"]
[null,"大野郡白川村","高山"]
[null,"長野市","長野、篠ノ井",null,"犀川以北は「長野営業所」"]
[null,"松本市","松本、安曇野",null,"旧東筑摩郡四賀村、旧南安曇郡梓川村以外は「松本営業所」"]
[null,"上田市","上田"]
[null,"岡谷市","諏訪"]
[null,"飯田市","飯田"]
[null,"諏訪市","諏訪"]
[null,"須坂市","長野"]
[null,"小諸市","佐久"]
[null,"伊那市","伊那"]
[null,"駒ヶ根市","伊那"]
[null,"中野市","飯山"]
[null,"大町市","大町"]
[null,"飯山市","飯山"]
[null,"茅野市","諏訪"]
[null,"塩尻市","松本、木曽福島",null,"旧木曽郡楢川村以外は「松本営業所」"]
[null,"佐久市","佐久"]
[null,"千曲市","篠ノ井"]
[null,"東御市","上田、佐久",null,"旧小県郡東部町は「上田営業所」、旧北佐久郡北御牧村は「佐久営業所」"]
[null,"安曇野市","安曇野"]
[null,"南佐久郡小海町","佐久"]
[null,"南佐久郡川上村","佐久"]
[null,"南佐久郡南牧村","佐久"]
[null,"南佐久郡南相木村","佐久"]
[null,"南佐久郡北相木村","佐久"]
[null,"南佐久郡佐久穂町","佐久"]
[null,"北佐久郡軽井沢町","軽井沢"]
[null,"北佐久郡御代田町","佐久"]
[null,"北佐久郡立科町","上田"]
[null,"小県郡青木村","上田"]
[null,"小県郡長和町","上田"]
[null,"諏訪郡下諏訪町","諏訪"]
[null,"諏訪郡富士見町","諏訪"]
[null,"諏訪郡原村","諏訪"]
[null,"上伊那郡辰野町","諏訪"]
[null,"上伊那郡箕輪町","伊那"]
[null,"上伊那郡飯島町","伊那"]
[null,"上伊那郡南箕輪村","伊那"]
[null,"上伊那郡中川村","伊那"]
[null,"上伊那郡宮田村","伊那"]
[null,"下伊那郡松川町","飯田"]
[null,"下伊那郡下伊那郡高森町","飯田"]
[null,"下伊那郡阿南町","飯田"]
[null,"下伊那郡阿智村","飯田"]
[null,"下伊那郡平谷村","飯田"]
[null,"下伊那郡根羽村","飯田"]
[null,"下伊那郡下條村","飯田"]
[null,"下伊那郡売木村","飯田"]
[null,"下伊那郡天龍村","飯田"]
[null,"下伊那郡泰阜村","飯田"]
[null,"下伊那郡喬木村","飯田"]
[null,"下伊那郡豊丘村","飯田"]
[null,"下伊那郡大鹿村","飯田"]
[null,"木曽郡上松町","木曽福島",null,"木曽福島SS"]
[null,"木曽郡南木曽町","木曽福島",null,"木曽福島SS"]
[null,"木曽郡木祖村","木曽福島",null,"木曽福島SS"]
[null,"木曽郡王滝村","木曽福島",null,"木曽福島SS"]
[null,"木曽郡大桑村","木曽福島",null,"木曽福島SS"]
[null,"木曽郡木曽町","木曽福島",null,"木曽福島SS"]
[null,"東筑摩郡麻績村","安曇野"]
[null,"東筑摩郡生坂村","安曇野"]
[null,"東筑摩郡山形村","松本"]
[null,"東筑摩郡朝日村","松本"]
[null,"東筑摩郡筑北村","安曇野"]
[null,"北安曇郡池田町","大町",null,"大町SS"]
[null,"北安曇郡松川村","大町",null,"大町SS"]
[null,"北安曇郡白馬村","大町",null,"大町SS"]
[null,"北安曇郡小谷村","大町",null,"大町SS"]
[null,"埴科郡坂城町","上田"]
[null,"上高井郡小布施町","長野"]
[null,"上高井郡高山村","長野"]
[null,"下高井郡山ノ内町","飯山"]
[null,"下高井郡木島平村","飯山"]
[null,"下高井郡野沢温泉村","飯山"]
[null,"上水内郡信濃町","長野"]
[null,"上水内郡小川村","長野"]
[null,"上水内郡飯綱町","長野"]
[null,"下水内郡栄村","飯山"]

{"sheet":"申込書","index":1,"n_rows":274,"n_cols":117,"rows_kept":274,"cut":false,"hidden":false,"merged":[[0,0,0,8],[1,6,1,8],[2,6,2,8],[4,1,4,3],[10,2,10,3],[25,1,25,8],[9,7,9,8],[10,7,10,8],[13,2,13,3],[16,1,16,3],[13,6,13,8],[21,1,21,8],[13,4,13,5],[18,1,18,8],[23,1,23,8],[9,2,9,3],[16,4,16,5],[14,4,15,4],[15,6,15,8],[16,6,16,7],[14,7,14,8],[11,2,11,5],[11,6,11,8],[7,1,11,1],[12,5,12,8],[12,3,12,4],[7,2,7,3],[8,2,8,3],[7,4,7,8],[8,4,8,8],[9,4,9,5],[10,4,10,5]]}
["事前相談申込書",null,null,null,null,null,null,null,null,null,null,null,null,null,null,null,null,null,null,null,null,null,null,null,null,null,null,null,null,null,null,null,null,null,null,null,null,null,null,null,null,null,null,null,null,null,null,null,null,null,null,null,null,null,null,null,null,null,null,null,null,null,"添付書類１",null,null,null,null,null,null,null,null,null,null,null,null,null,null,null,null,null,null,null,null,null,null,null,null,null,null,null,null,null,null,null,null,null,null,null,null,null,null,null,null,null,null,null,null,null,null,null,null,null,null,null,null,null,"添付書類２"]
[null,null,null,null,null,null,"様式 CK1-20220401",null,null,null,"◆発電設備等設置場所の位置図",null,null,null,null,null,null,null,null,null,null,null,null,null,null,null,null,null,null,null,null,null,null,"※以下のスペースに貼り付けてください。"]
[null,null,null,null,null,"申込日"]
[]
[null,"中部電力パワーグリッド株式会社",null,null,"御中"]
[]
[null,"１．申込みの概要"]
[null,"依頼者","会社名"]
[null,null,"所在地"]
[null,null,"所属・担当者",null,null,null,"電話番号"]
[null,null,"E-mail",null,null,null,"FAX"]
[null,null,"一般送配電事業者又は配電事業者の同一法人又は親子法人等　該当有無※1",null,null,null,"□　有　 　□　無"]
[null,"発電設備等の\n設置場所"]
[null,"発電設備等の種類",null,null,"連系先一般送配電事業者\n又は配電事業者"]
[null,"発電設備等容量",null,"kW","希望連系点※2","高圧連系"]
[null,"最大受電電力※3",null,"kW",null,"特高連系"]
[null,null,null,null,"希望受電電圧※4",null,null,null,"kV"]
[]
[null,"※1 送電系統を運用する一般送配電事業者又は配電事業者の同一法人又は親子法人等である特定系統連系希望者（最大受電電力の\n    合計値が１万キロワット以上の発電設備等の連系等を希望する者）の申込み先は、電力広域的運営推進機関となります。\n※2 希望する送配電設備の連系点がありましたら、電柱番号・送電線名等をご記入ください。\n※3 電力系統側に流出する最大電力（発電設備容量－自家消費電力）をご記入ください（自家消費電力が不明の場合は記入不要です。）。\n※4 希望する連系電圧をご記入ください。\n"]
[null,"２．添付書類 （※添付書類がある場合のみご記入ください。）"]
[]
[null,"　・　発電設備等設置場所の位置図"]
[]
[null,"＜注意事項＞\n・ 特別高圧以上の送電系統に関しては、各一般送配電事業者がホームページ上で公表している系統連系\n　 制約マッピング情報でも連系制限が想定される地域を確認することができます。\n・ 申込書１枚につき１箇所の連系点について確認いたします。検討料は不要です。\n・ 本申込書に対する回答内容は以下のとおりです。\n【希望受電電圧が高圧であって、配電用変電所が存在する送電系統の場合】\n(1)配電用変電所における配電用変圧器の熱容量に起因する連系制限の有無。連系制限がある場合には配\n　 電用変電所における配電用変圧器の熱容量から算定される連系可能な最大受電電力\n(2)最大受電電力に対してバンク逆潮流（配電用変電所における配電用変圧器の高圧側から特別高圧側に\n　 流れる潮流をいいます。）の発生に伴う連系制限がある場合は、バンク逆潮流の対策工事を実施せず\n　 に連系可能な最大受電電力。\n(3)想定する連系点から連系を予定する配電用変電所までの既設配電線路亘長\n【希望受電電圧が高圧であって、配電用変電所が存在しない一部の離島系統の場合】\n(1)高圧流通設備の熱容量に起因する連系制限の有無。連系制限がある場合には高圧流通設備の熱容量か\n　 ら算定される連系可能な最大受電電力\n(2)想定する連系点から始点となる電気所までの既設高圧流通設備の線路亘長\n【希望受電電圧が特別高圧である場合】\n(1)送変電設備の熱容量に起因する連系制限の有無。連系制限がある場合には送変電設備の熱容量から算\n 　定される連系可能な最大受電電力\n(2)想定する連系点から発電設備等の設置場所までの直線距離\n・ 本申込書に対する回答内容は、希望する送電系統への連系可否を確定するものではありません。\n・ 本申込書により得た依頼者等の情報については、連系制限有無の確認および申込状況の管理、統計に\n　 使用されます。また、電力広域的運営推進機関の送配電等業務指針に基づき、一般送配電事業者又は配電\n 　事業者に依頼された申込内容の一部を電力広域的運営推進機関に報告する場合があります。\n　　※　連系制限とは既設送変電設備の空き容量不足等により設備増強（アクセス線新設を除く）が必要な場合をいいます。"]
[null,null,null,null,null,null,null,null,"以　上"]
[null,"目的外使用・開示禁止"]
[null,"太陽光"]
[null,"風力"]
[null,"水力"]
[null,"バイオマス"]
[null,"地熱"]
[null,"蓄電池"]
[null,"以下のデータ（B～J）を管理表へ値貼付"]
[null,"会社名","担当者名","電話番号","E-mail","設置場所","希望受電電圧","電源種別","発電出力","最大受電電力","申込書受領日"]
[null,{"$f":"E8","v":0},{"$f":"E10","v":0},{"$f":"H10","v":0},{"$f":"E11","v":0},{"$f":"C13&D13&F13","v":""},{"$f":"G17","v":0},{"$f":"C14","v":0},{"$f":"C15","v":0},{"$f":"C16","v":0},{"$f":"G3","v":0}]
[]
[]
[null,"市町村名","該当事業所","⇒",{"$f":"VLOOKUP(D13,B39:C274,2,0)","v":{"$error":"#N/A"}}]
[null,"名古屋市千種区","名古屋",null,null,null,null,null,null,null,null,null,null,null,"愛知県","静岡県","三重県","岐阜県","長野県","都道府県"]
[null,"名古屋市東区","名古屋",null,null,null,null,null,null,null,null,null,null,null,"名古屋市千種区","静岡市葵区","津市","岐阜市","長野市","愛知県"]
[null,"名古屋市北区","名古屋",null,null,null,null,null,null,null,null,null,null,null,"名古屋市東区","静岡市駿河区","四日市市","大垣市","松本市","静岡県"]
[null,"名古屋市西区","名古屋",null,null,null,null,null,null,null,null,null,null,null,"名古屋市北区","静岡市清水区","伊勢市","高山市","上田市","三重県"]
[null,"名古屋市中村区","名古屋",null,null,null,null,null,null,null,null,null,null,null,"名古屋市西区","浜松市中央区","松阪市","多治見市","岡谷市","岐阜県"]
[null,"名古屋市中区","名古屋",null,null,null,null,null,null,null,null,null,null,null,"名古屋市中村区","浜松市浜名区","桑名市","関市","飯田市","長野県"]
[null,"名古屋市昭和区","名古屋",null,null,null,null,null,null,null,null,null,null,null,"名古屋市中区","浜松市天竜区","鈴鹿市","中津川市","諏訪市"]
[null,"名古屋市瑞穂区","名古屋",null,null,null,null,null,null,null,null,null,null,null,"名古屋市昭和区","富士宮市","名張市","美濃市","須坂市"]
[null,"名古屋市熱田区","名古屋",null,null,null,null,null,null,null,null,null,null,null,"名古屋市瑞穂区","島田市","尾鷲市","瑞浪市","小諸市"]
[null,"名古屋市中川区","名古屋",null,null,null,null,null,null,null,null,null,null,null,"名古屋市熱田区","富士市","亀山市","羽島市","伊那市"]
[null,"名古屋市港区","名古屋",null,null,null,null,null,null,null,null,null,null,null,"名古屋市中川区","磐田市","鳥羽市","恵那市","駒ヶ根市"]
[null,"名古屋市南区","名古屋",null,null,null,null,null,null,null,null,null,null,null,"名古屋市港区","焼津市","熊野市","美濃加茂市","中野市"]
[null,"名古屋市守山区","名古屋",null,null,null,null,null,null,null,null,null,null,null,"名古屋市南区","掛川市","いなべ市","土岐市","大町市"]
[null,"名古屋市緑区","名古屋",null,null,null,null,null,null,null,null,null,null,null,"名古屋市守山区","藤枝市","志摩市","各務原市","飯山市"]
[null,"名古屋市名東区","名古屋",null,null,null,null,null,null,null,null,null,null,null,"名古屋市緑区","袋井市","伊賀市","可児市","茅野市"]
[null,"名古屋市天白区","名古屋",null,null,null,null,null,null,null,null,null,null,null,"名古屋市名東区","湖西市","桑名郡木曽岬町","山県市","塩尻市"]
[null,"豊橋市","岡崎",null,null,null,null,null,null,null,null,null,null,null,"名古屋市天白区","御前崎市","員弁郡東員町","瑞穂市","佐久市"]
[null,"岡崎市","岡崎",null,null,null,null,null,null,null,null,null,null,null,"豊橋市","菊川市","三重郡菰野町","飛騨市","千曲市"]
[null,"一宮市","名古屋",null,null,null,null,null,null,null,null,null,null,null,"岡崎市","牧之原市","三重郡朝日町","本巣市","東御市"]
[null,"瀬戸市","名古屋",null,null,null,null,null,null,null,null,null,null,null,"一宮市","榛原郡吉田町","三重郡川越町","郡上市","安曇野市"]
[null,"半田市","名古屋",null,null,null,null,null,null,null,null,null,null,null,"瀬戸市","榛原郡川根本町","多気郡多気町","下呂市","南佐久郡小海町"]
[null,"春日井市","名古屋",null,null,null,null,null,null,null,null,null,null,null,"半田市","周智郡森町","多気郡明和町","海津市","南佐久郡川上村"]
[null,"豊川市","岡崎",null,null,null,null,null,null,null,null,null,null,null,"春日井市",null,"多気郡大台町","羽島郡岐南町","南佐久郡南牧村"]
[null,"津島市","名古屋",null,null,null,null,null,null,null,null,null,null,null,"豊川市",null,"度会郡玉城町","羽島郡笠松町","南佐久郡南相木村"]
[null,"碧南市","岡崎",null,null,null,null,null,null,null,null,null,null,null,"津島市",null,"度会郡度会町","養老郡養老町","南佐久郡北相木村"]
[null,"刈谷市","岡崎",null,null,null,null,null,null,null,null,null,null,null,"碧南市",null,"度会郡大紀町","不破郡垂井町","南佐久郡佐久穂町"]
[null,"豊田市","岡崎",null,null,null,null,null,null,null,null,null,null,null,"刈谷市",null,"度会郡南伊勢町","不破郡関ケ原町","北佐久郡軽井沢町"]
[null,"安城市","岡崎",null,null,null,null,null,null,null,null,null,null,null,"豊田市",null,"北牟婁郡紀北町","安八郡神戸町","北佐久郡御代田町"]
[null,"西尾市","岡崎",null,null,null,null,null,null,null,null,null,null,null,"安城市",null,null,"安八郡輪之内町","北佐久郡立科町"]
[null,"蒲郡市","岡崎",null,null,null,null,null,null,null,null,null,null,null,"西尾市",null,null,"安八郡安八町","小県郡青木村"]
[null,"犬山市","名古屋",null,null,null,null,null,null,null,null,null,null,null,"蒲郡市",null,null,"揖斐郡揖斐川町","小県郡長和町"]
[null,"常滑市","名古屋",null,null,null,null,null,null,null,null,null,null,null,"犬山市",null,null,"揖斐郡大野町","諏訪郡下諏訪町"]
[null,"江南市","名古屋",null,null,null,null,null,null,null,null,null,null,null,"常滑市",null,null,"揖斐郡池田町","諏訪郡富士見町"]
[null,"小牧市","名古屋",null,null,null,null,null,null,null,null,null,null,null,"江南市",null,null,"本巣郡北方町","諏訪郡原村"]
[null,"稲沢市","名古屋",null,null,null,null,null,null,null,null,null,null,null,"小牧市",null,null,"加茂郡坂祝町","上伊那郡辰野町"]
[null,"新城市","岡崎",null,null,null,null,null,null,null,null,null,null,null,"稲沢市",null,null,"加茂郡富加町","上伊那郡箕輪町"]
[null,"東海市","名古屋",null,null,null,null,null,null,null,null,null,null,null,"新城市",null,null,"加茂郡川辺町","上伊那郡飯島町"]
[null,"大府市","名古屋",null,null,null,null,null,null,null,null,null,null,null,"東海市",null,null,"加茂郡七宗町","上伊那郡南箕輪村"]
[null,"知多市","名古屋",null,null,null,null,null,null,null,null,null,null,null,"大府市",null,null,"加茂郡八百津町","上伊那郡中川村"]
[null,"知立市","岡崎",null,null,null,null,null,null,null,null,null,null,null,"知多市",null,null,"加茂郡白川町","上伊那郡宮田村"]
[null,"尾張旭市","名古屋",null,null,null,null,null,null,null,null,null,null,null,"知立市",null,null,"加茂郡東白川村","下伊那郡松川町"]
[null,"高浜市","岡崎",null,null,null,null,null,null,null,null,null,null,null,"尾張旭市",null,null,"可児郡御嵩町","下伊那郡下伊那郡高森町"]
[null,"岩倉市","名古屋",null,null,null,null,null,null,null,null,null,null,null,"高浜市",null,null,"大野郡白川村","下伊那郡阿南町"]
[null,"豊明市","名古屋",null,null,null,null,null,null,null,null,null,null,null,"岩倉市",null,null,null,"下伊那郡阿智村"]
[null,"日進市","名古屋",null,null,null,null,null,null,null,null,null,null,null,"豊明市",null,null,null,"下伊那郡平谷村"]
[null,"田原市","岡崎",null,null,null,null,null,null,null,null,null,null,null,"日進市",null,null,null,"下伊那郡根羽村"]
[null,"愛西市","名古屋",null,null,null,null,null,null,null,null,null,null,null,"田原市",null,null,null,"下伊那郡下條村"]
[null,"清須市","名古屋",null,null,null,null,null,null,null,null,null,null,null,"愛西市",null,null,null,"下伊那郡売木村"]
[null,"北名古屋市","名古屋",null,null,null,null,null,null,null,null,null,null,null,"清須市",null,null,null,"下伊那郡天龍村"]
[null,"弥富市","名古屋",null,null,null,null,null,null,null,null,null,null,null,"北名古屋市",null,null,null,"下伊那郡泰阜村"]
[null,"みよし市","岡崎",null,null,null,null,null,null,null,null,null,null,null,"弥富市",null,null,null,"下伊那郡喬木村"]
[null,"あま市","名古屋",null,null,null,null,null,null,null,null,null,null,null,"みよし市",null,null,null,"下伊那郡豊丘村"]
[null,"長久手市","名古屋",null,null,null,null,null,null,null,null,null,null,null,"あま市",null,null,null,"下伊那郡大鹿村"]
[null,"愛知郡東郷町","名古屋",null,null,null,null,null,null,null,null,null,null,null,"長久手市",null,null,null,"木曽郡上松町"]
[null,"西春日井郡豊山町","名古屋",null,null,null,null,null,null,null,null,null,null,null,"愛知郡東郷町",null,null,null,"木曽郡南木曽町"]
[null,"丹羽郡大口町","名古屋",null,null,null,null,null,null,null,null,null,null,null,"西春日井郡豊山町",null,null,null,"木曽郡木祖村"]
[null,"丹羽郡扶桑町","名古屋",null,null,null,null,null,null,null,null,null,null,null,"丹羽郡大口町",null,null,null,"木曽郡王滝村"]
[null,"海部郡大治町","名古屋",null,null,null,null,null,null,null,null,null,null,null,"丹羽郡扶桑町",null,null,null,"木曽郡大桑村"]
[null,"海部郡蟹江町","名古屋",null,null,null,null,null,null,null,null,null,null,null,"海部郡大治町",null,null,null,"木曽郡木曽町"]
[null,"海部郡飛島村","名古屋",null,null,null,null,null,null,null,null,null,null,null,"海部郡蟹江町",null,null,null,"東筑摩郡麻績村"]
[null,"知多郡阿久比町","名古屋",null,null,null,null,null,null,null,null,null,null,null,"海部郡飛島村",null,null,null,"東筑摩郡生坂村"]
[null,"知多郡東浦町","名古屋",null,null,null,null,null,null,null,null,null,null,null,"知多郡阿久比町",null,null,null,"東筑摩郡山形村"]
[null,"知多郡南知多町","名古屋",null,null,null,null,null,null,null,null,null,null,null,"知多郡東浦町",null,null,null,"東筑摩郡朝日村"]
[null,"知多郡美浜町","名古屋",null,null,null,null,null,null,null,null,null,null,null,"知多郡南知多町",null,null,null,"東筑摩郡筑北村"]
[null,"知多郡武豊町","名古屋",null,null,null,null,null,null,null,null,null,null,null,"知多郡美浜町",null,null,null,"北安曇郡池田町"]
[null,"額田郡幸田町","岡崎",null,null,null,null,null,null,null,null,null,null,null,"知多郡武豊町",null,null,null,"北安曇郡松川村"]
[null,"北設楽郡設楽町","岡崎",null,null,null,null,null,null,null,null,null,null,null,"額田郡幸田町",null,null,null,"北安曇郡白馬村"]
[null,"北設楽郡東栄町","岡崎",null,null,null,null,null,null,null,null,null,null,null,"北設楽郡設楽町",null,null,null,"北安曇郡小谷村"]
[null,"北設楽郡豊根村","岡崎",null,null,null,null,null,null,null,null,null,null,null,"北設楽郡東栄町",null,null,null,"埴科郡坂城町"]
[null,"静岡市葵区","静岡",null,null,null,null,null,null,null,null,null,null,null,"北設楽郡豊根村",null,null,null,"上高井郡小布施町"]
[null,"静岡市駿河区","静岡",null,null,null,null,null,null,null,null,null,null,null,null,null,null,null,"上高井郡高山村"]
[null,"静岡市清水区","静岡",null,null,null,null,null,null,null,null,null,null,null,null,null,null,null,"下高井郡山ノ内町"]
[null,"浜松市中央区","静岡",null,null,null,null,null,null,null,null,null,null,null,null,null,null,null,"下高井郡木島平村"]
[null,"浜松市浜名区","静岡",null,null,null,null,null,null,null,null,null,null,null,null,null,null,null,"下高井郡野沢温泉村"]
[null,"浜松市天竜区","静岡",null,null,null,null,null,null,null,null,null,null,null,null,null,null,null,"上水内郡信濃町"]
[null,"富士宮市","静岡",null,null,null,null,null,null,null,null,null,null,null,null,null,null,null,"上水内郡小川村"]
[null,"島田市","静岡",null,null,null,null,null,null,null,null,null,null,null,null,null,null,null,"上水内郡飯綱町"]
[null,"富士市","静岡",null,null,null,null,null,null,null,null,null,null,null,null,null,null,null,"下水内郡栄村"]
[null,"磐田市","静岡"]
[null,"焼津市","静岡"]
[null,"掛川市","静岡"]
[null,"藤枝市","静岡"]
[null,"袋井市","静岡"]
[null,"湖西市","静岡"]
[null,"御前崎市","静岡"]
[null,"菊川市","静岡"]
[null,"牧之原市","静岡"]
[null,"榛原郡吉田町","静岡"]
[null,"榛原郡川根本町","静岡"]
[null,"周智郡森町","静岡"]
[null,"津市","三重"]
[null,"四日市市","三重"]
[null,"伊勢市","三重"]
[null,"松阪市","三重"]
[null,"桑名市","三重"]
[null,"鈴鹿市","三重"]
[null,"名張市","三重"]
[null,"尾鷲市","三重"]
[null,"亀山市","三重"]
[null,"鳥羽市","三重"]
[null,"熊野市","三重"]
[null,"いなべ市","三重"]
[null,"志摩市","三重"]
[null,"伊賀市","三重"]
[null,"桑名郡木曽岬町","三重"]
[null,"員弁郡東員町","三重"]
[null,"三重郡菰野町","三重"]
[null,"三重郡朝日町","三重"]
[null,"三重郡川越町","三重"]
[null,"多気郡多気町","三重"]
[null,"多気郡明和町","三重"]
[null,"多気郡大台町","三重"]
[null,"度会郡玉城町","三重"]
[null,"度会郡度会町","三重"]
[null,"度会郡大紀町","三重"]
[null,"度会郡南伊勢町","三重"]
[null,"北牟婁郡紀北町","三重"]
[null,"岐阜市","岐阜"]
[null,"大垣市","岐阜"]
[null,"高山市","岐阜"]
[null,"多治見市","岐阜"]
[null,"関市","岐阜"]
[null,"中津川市","岐阜"]
[null,"美濃市","岐阜"]
[null,"瑞浪市","岐阜"]
[null,"羽島市","岐阜"]
[null,"恵那市","岐阜"]
[null,"美濃加茂市","岐阜"]
[null,"土岐市","岐阜"]
[null,"各務原市","岐阜"]
[null,"可児市","岐阜"]
[null,"山県市","岐阜"]
[null,"瑞穂市","岐阜"]
[null,"飛騨市","岐阜"]
[null,"本巣市","岐阜"]
[null,"郡上市","岐阜"]
[null,"下呂市","岐阜"]
[null,"海津市","岐阜"]
[null,"羽島郡岐南町","岐阜"]
[null,"羽島郡笠松町","岐阜"]
[null,"養老郡養老町","岐阜"]
[null,"不破郡垂井町","岐阜"]
[null,"不破郡関ケ原町","岐阜"]
[null,"安八郡神戸町","岐阜"]
[null,"安八郡輪之内町","岐阜"]
[null,"安八郡安八町","岐阜"]
[null,"揖斐郡揖斐川町","岐阜"]
[null,"揖斐郡大野町","岐阜"]
[null,"揖斐郡池田町","岐阜"]
[null,"本巣郡北方町","岐阜"]
[null,"加茂郡坂祝町","岐阜"]
[null,"加茂郡富加町","岐阜"]
[null,"加茂郡川辺町","岐阜"]
[null,"加茂郡七宗町","岐阜"]
[null,"加茂郡八百津町","岐阜"]
[null,"加茂郡白川町","岐阜"]
[null,"加茂郡東白川村","岐阜"]
[null,"可児郡御嵩町","岐阜"]
[null,"大野郡白川村","岐阜"]
[null,"長野市","長野"]
[null,"松本市","松本"]
[null,"上田市","長野"]
[null,"岡谷市","松本"]
[null,"飯田市","松本"]
[null,"諏訪市","松本"]
[null,"須坂市","長野"]
[null,"小諸市","長野"]
[null,"伊那市","松本"]
[null,"駒ヶ根市","松本"]
[null,"中野市","長野"]
[null,"大町市","長野"]
[null,"飯山市","長野"]
[null,"茅野市","松本"]
[null,"塩尻市","松本"]
[null,"佐久市","長野"]
[null,"千曲市","長野"]
[null,"東御市","長野"]
[null,"安曇野市","長野"]
[null,"南佐久郡小海町","長野"]
[null,"南佐久郡川上村","長野"]
[null,"南佐久郡南牧村","長野"]
[null,"南佐久郡南相木村","長野"]
[null,"南佐久郡北相木村","長野"]
[null,"南佐久郡佐久穂町","長野"]
[null,"北佐久郡軽井沢町","長野"]
[null,"北佐久郡御代田町","長野"]
[null,"北佐久郡立科町","長野"]
[null,"小県郡青木村","長野"]
[null,"小県郡長和町","長野"]
[null,"諏訪郡下諏訪町","松本"]
[null,"諏訪郡富士見町","松本"]
[null,"諏訪郡原村","松本"]
[null,"上伊那郡辰野町","松本"]
[null,"上伊那郡箕輪町","松本"]
[null,"上伊那郡飯島町","松本"]
[null,"上伊那郡南箕輪村","松本"]
[null,"上伊那郡中川村","松本"]
[null,"上伊那郡宮田村","松本"]
[null,"下伊那郡松川町","松本"]
[null,"下伊那郡下伊那郡高森町","松本"]
[null,"下伊那郡阿南町","松本"]
[null,"下伊那郡阿智村","松本"]
[null,"下伊那郡平谷村","松本"]
[null,"下伊那郡根羽村","松本"]
[null,"下伊那郡下條村","松本"]
[null,"下伊那郡売木村","松本"]
[null,"下伊那郡天龍村","松本"]
[null,"下伊那郡泰阜村","松本"]
[null,"下伊那郡喬木村","松本"]
[null,"下伊那郡豊丘村","松本"]
[null,"下伊那郡大鹿村","松本"]
[null,"木曽郡上松町","松本"]
[null,"木曽郡南木曽町","松本"]
[null,"木曽郡木祖村","松本"]
[null,"木曽郡王滝村","松本"]
[null,"木曽郡大桑村","松本"]
[null,"木曽郡木曽町","松本"]
[null,"東筑摩郡麻績村","長野"]
[null,"東筑摩郡生坂村","長野"]
[null,"東筑摩郡山形村","松本"]
[null,"東筑摩郡朝日村","松本"]
[null,"東筑摩郡筑北村","長野"]
[null,"北安曇郡池田町","長野"]
[null,"北安曇郡松川村","長野"]
[null,"北安曇郡白馬村","長野"]
[null,"北安曇郡小谷村","長野"]
[null,"埴科郡坂城町","長野"]
[null,"上高井郡小布施町","長野"]
[null,"上高井郡高山村","長野"]
[null,"下高井郡山ノ内町","長野"]
[null,"下高井郡木島平村","長野"]
[null,"下高井郡野沢温泉村","長野"]
[null,"上水内郡信濃町","長野"]
[null,"上水内郡小川村","長野"]
[null,"上水内郡飯綱町","長野"]
[null,"下水内郡栄村","長野"]

{"sheet":"回答書","index":2,"n_rows":101,"n_cols":39,"rows_kept":101,"cut":false,"hidden":true,"merged":[[27,37,50,71],[29,2,29,11],[29,12,29,36],[30,2,30,36],[31,2,31,36],[32,2,32,11],[32,12,32,36],[27,2,28,36],[36,21,36,26],[36,27,36,28],[37,21,37,26],[37,27,37,28],[3,38,4,69],[6,38,9,69],[10,38,10,69],[11,38,12,69],[19,2,20,12],[19,13,20,24],[19,25,20,34],[5,12,5,34],[5,2,5,11],[9,9,9,19],[11,9,11,14],[11,15,11,19],[11,20,11,34],[13,15,13,20],[13,25,13,26],[6,12,6,34],[23,2,23,36],[33,0,33,36],[18,2,18,12],[22,29,22,32],[22,27,22,28],[18,13,18,34],[22,33,22,34],[22,13,22,26],[21,2,21,12],[21,13,21,16],[21,17,21,18],[22,2,22,5],[22,6,22,10],[22,11,22,12],[24,2,24,36],[25,2,25,36],[13,2,13,8],[13,9,13,12],[12,13,12,14],[10,9,10,34],[11,2,11,8],[13,21,13,24],[19,38,19,55],[20,38,20,55],[21,38,21,55],[0,0,0,34],[1,25,1,34],[2,22,2,24],[2,25,2,34],[16,2,17,12],[16,13,17,24],[16,25,17,34],[6,2,6,11],[9,2,9,8],[10,2,10,8],[13,13,13,14],[12,2,12,8],[12,9,12,12]]}
["事前相談に対する回答書（特別高圧）",null,null,null,null,null,null,null,null,null,null,null,null,null,null,null,null,null,null,null,null,null,null,null,null,null,null,null,null,null,null,null,null,null,null,null,null,null,{"$f":"申込書!E8","v":0}]
[null,null,null,null,null,null,null,null,null,null,null,null,null,null,null,null,null,null,null,null,null,null,null,null,null,"様式 CK3 特高-20230403",null,null,null,null,null,null,null,null,null,null,null,null,{"$f":"申込書!E10&\"　様\"","v":"　様"}]
[null,null,null,null,null,null,null,null,null,null,null,null,null,null,null,null,null,null,null,null,null,null,"回答日"]
[null,null,null,null,null,null,null,null,null,null,null,null,null,null,null,null,null,null,null,null,null,null,null,null,null,null,null,null,null,null,null,null,null,null,null,null,null,null,"先日お申込みいただきました事前相談につきまして、添付のとおり回答いたします。"]
[null,null,"１．申込者等の概要"]
[null,null,"申込者",null,null,null,null,null,null,null,null,null,{"$f":"申込書!E8","v":0},null,null,null,null,null,null,null,null,null,null,null,null,null,null,null,null,null,null,null,null,null,null,null,null,null,"＜留意事項等＞"]
[null,null,"検討者",null,null,null,null,null,null,null,null,null,"中部電力パワーグリッド株式会社",null,null,null,null,null,null,null,null,null,null,null,null,null,null,null,null,null,null,null,null,null,null,null,null,null,"・ 事前相談は、連系予定の送電設備について、熱容量から評価した平常時における混雑発生の有無、発電所から送電線までの直線距離を簡易的に確認するものです。\n・　詳細の検討は、接続検討や契約申込にて実施します。これにより、連系先の送電設備等変更や混雑状況が変更となることがございますのでご承知おきください。\n　送変電設備に関する熱容量面での空容量については、当社ＨＰの系統空容量マッピングにてご確認ください。"]
[]
[null,null,"２．依頼内容"]
[null,null,"依頼日（受付日）",null,null,null,null,null,null,{"$f":"申込書!G3","v":"00:00:00"}]
[null,null,"発電設備等の\n設置場所",null,null,null,null,null,null,{"$f":"申込書!C13&申込書!D13&申込書!F13","v":""},null,null,null,null,null,null,null,null,null,null,null,null,null,null,null,null,null,null,null,null,null,null,null,null,null,null,null,null,"中部電力パワーグリッド株式会社 l 系統空容量マッピング"]
[null,null,"発電設備等の種類",null,null,null,null,null,null,{"$f":"申込書!C14","v":0},null,null,null,null,null,"希望連系点",null,null,null,null,{"$f":"申込書!G16","v":0},null,null,null,null,null,null,null,null,null,null,null,null,null,null,null,null,null,"・ ご契約手続きに関する事項等につきましては、当社HPをご確認ください。\n　売電開始までには「接続検討」および「契約申込み」の手続きが必要となります。両手続に関する所要期間\n　（受付～回答まで）には十分ご留意ください。　【 接続検討：原則３ヵ月以内　　契約申込み：原則６ヵ月以内 】"]
[null,null,"発電設備等の容量",null,null,null,null,null,null,{"$f":"申込書!C15","v":0},null,null,null,"kW"]
[null,null,"最大受電電力",null,null,null,null,null,null,{"$f":"IF(申込書!C16=\"\",J13,申込書!C16)","v":0},null,null,null,"kW",null,"希望連系電圧",null,null,null,null,null,{"$f":"申込書!G17","v":0},null,null,null,"kV",null,null,null,null,null,null,null,null,null,null,null,null,"中部電力パワーグリッド｜売電開始までの手続きについて（特高）新規申し込みについて"]
[]
[null,null,"３．回答内容"]
[null,null,"平常時における混雑発生の有無※１",null,null,null,null,null,null,null,null,null,null,"平常時における混雑発生",null,null,null,null,null,null,null,null,null,null,null,null,null,null,null,null,null,null,null,null,null,null,null,null,"本回答に関するお問い合わせは以下のお問い合わせ先へご連絡ください。"]
[]
[null,null,"主な混雑設備",null,null,null,null,null,null,null,null,null,null,null,null,null,null,null,null,null,null,null,null,null,null,null,null,null,null,null,null,null,null,null,null,null,null,null,"◆ お問い合わせ先 ◆"]
[null,null,"熱容量に起因する\n連系制限の有無※１",null,null,null,null,null,null,null,null,null,null,"最大受電電力に対する",null,null,null,null,null,null,null,null,null,null,null,null,null,null,null,null,null,null,null,null,null,null,null,null,{"$f":"VLOOKUP(AB38,I36:L101,2,0)","v":{"$error":"#N/A"}}]
[null,null,null,null,null,null,null,null,null,null,null,null,null,null,null,null,null,null,null,null,null,null,null,null,null,null,null,null,null,null,null,null,null,null,null,null,null,null,{"$f":"VLOOKUP(AB38,I36:L101,4,0)","v":{"$error":"#N/A"}}]
[null,null,"連系制限ありの場合の\n連系可能な最大受電電力※２",null,null,null,null,null,null,null,null,null,null,"－",null,null,null,"kW",null,null,null,null,null,null,null,null,null,null,null,null,null,null,null,null,null,null,null,null,{"$f":"\"MAIL： \"&VLOOKUP(AB38,I36:L101,3,0)","v":{"$error":"#N/A"}}]
[null,null,"電圧",null,null,null,{"$f":"申込書!G17","v":0},null,null,null,null,"kV",null,"発電設備等設置場所から\n連系点（想定）※３までの直線距離",null,null,null,null,null,null,null,null,null,null,null,null,null,"約",null,{"$f":"ROUNDUP(AB37/1000,1)","v":0},null,null,null,"km"]
[null,null,"※１　現時点において想定される「平常時における混雑発生の有無」と出力制御量に影響を与える「主な混雑設備」を記載しています。なお、今後の系統状況の変化や接続検討の結果等により変更となる場合があります。設備の混雑状況を把握するための潮流実績等の情報については、以下URLをご参照ください。\n系統空き容量情報等のリンク先"]
[null,null,"https://powergrid.chuden.co.jp/goannai/hatsuden_kouri/takuso_kyokyu/rule/map/"]
[null,null,"※２  ノンファーム型接続適用外の設備（配電用変圧器）が対象。。\n※３  連系点(想定)とは、現時点において想定される連系点を表しています。接続検討の結果等により変更となる場合があります。"]
[]
[null,null,"＜注意事項＞\n・ 発電事業に必要な土地や発電設備等の手配にあたっては、以下の注意事項を踏まえた上で、ご検討下さい。\n・ 系統連系を希望する場合は、別途接続検討の申込みが必要となります。\n・ 本回答は、連系を予定する配電用変電所における配電用変圧器（配電用変電所が存在しない一部の離島系統の場合は高圧流通設備）の熱容量から簡易的に評価した結果であり、接続検討では、本回答と異なる結果となる可能性があります。\n・ 上位系統の混雑状況によっては、出力抑制が必要となります。\n・ 本回答は検討時点の送電系統の状況に基づくものであり、将来に亘って本回答内容をお約束するものではありません。\n・ 連系制限なしの場合、「連系制限ありの場合の連系可能な最大受電電力」の欄は「－」と記載しております。\n・ 「連系点(想定)から連系予定変電所までの既設配電線路亘長」は、あくまで連系点(想定)から連系予定変電所（配電用変電所が存在しない一部の離島系統の場合は始点となる電気所）までの既設配電線路の距離であり、具体的な連系点・連系ルート等の検討は接続検討において行います（連系予定変電所までの既設配電線路亘長が長くなるほど、対策工事費が高額になる可能性が高くなります。）。\n・ 連系に必要な工事の内容、工期等の検討は接続検討において行います。接続検討の結果によっては、系統連系を開始するために必要な工事が大規模になる場合や工事に長期間を要する場合があります（特にバンク逆潮流対策工事を実施する場合、工事に長い期間を要することが予測されます。また、バンク逆潮流対策工事が必要となる場合においても、機器設置スペースの都合等により対策工事が実施できない場合があります。）。\n・ 離島などにおいて、系統の規模と比較して大容量の電源を連系すると、電源の出力変動等による電力品質への影響が問題となる場合があります。そのため、接続検討の結果によっては、発電設備側で対策が必要となる場合や最大受電電力に制限が必要となる場合があります。\n※連系制限とは既設送変電設備の空容量不足等により設備増強（アクセス線新設を含めた配電線の新設・増強は除く）が必要な場合をいいます。\n\n＜その他＞\n・ お申込みの発電設備は、ノンファーム型接続適用電源になります。\n・ ノンファーム型接続の概要については、以下のURLをご参照ください。\n　　　　　　　　　　　　　　　　　　　　　　　　　　　　　　　　　　　　　　　　　　　　　　　　　　　　　　　　　　　　　　　　　　　　　　　　　　　　　　　\n　　　　　　　　　　　　　　　　　　　　　　　　　　　　　　　　　　　　　　　　　　　　　　　　　　　　　　　　　　　　　　            　　以　上　　　　　　　　　　　　　　　　　　　　　　　　　　　　　　　　　　　　　　　　　　　　　　　　　　　　　　　　　　　　　　　　　　　　　　　　　　　　　　　　　　　　　　　　　　　　　　　　　　　　　　　　　　　　　　　　　　　　 \n"]
[]
[null,null,"　ノンファーム型接続の概要リンク先：",null,null,null,null,null,null,null,null,null,"http://www.occto.or.jp/grid/business/setsuzoku.html#non-firm"]
[null,null,"・ 設備の混雑状況を把握するための各社潮流実績等の情報については、以下ＵＲＬをご参照ください。\n   系統空き容量情報等のリンク先："]
[null,null,"https://powergrid.chuden.co.jp/takuso_service/hatsuden_kouri/takuso_kyokyu/rule/map/"]
[null,null,"・情報公開データの活用方法リンク先：",null,null,null,null,null,null,null,null,null,"https://www.occto.or.jp/grid/business/documents/matome.pdf"]
["　　　　　　　　　　秘密情報　　目的外使用・第三者への開示を禁止します　　中部電力パワーグリッド株式会社"]
[]
[null,null,null,null,null,null,null,null,"名古屋","名古屋支社　　　契約グループ","100.Nw-eigyo@chuden.co.jp","〒460-8310　名古屋市中区千代田2-12-14"]
[null,null,null,null,null,null,null,null,"北","名古屋支社　　　契約グループ","100.Nw-eigyo@chuden.co.jp","〒460-8310　名古屋市中区千代田2-12-14",null,null,null,null,null,null,null,null,null,"直線距離入力箇所（m）"]
[null,null,null,null,null,null,null,null,"旭名東","名古屋支社　　　契約グループ","100.Nw-eigyo@chuden.co.jp","〒460-8310　名古屋市中区千代田2-12-14",null,null,null,null,null,null,null,null,null,"事業所名",null,null,null,null,null,{"$f":"IF(申込書!E38=\"\",#REF!,申込書!E38)","v":{"$error":"#N/A"}}]
[null,null,null,null,null,null,null,null,"港","名古屋支社　　　契約グループ","100.Nw-eigyo@chuden.co.jp","〒460-8310　名古屋市中区千代田2-12-14"]
[null,null,null,null,null,null,null,null,"熱田","名古屋支社　　　契約グループ","100.Nw-eigyo@chuden.co.jp","〒460-8310　名古屋市中区千代田2-12-14"]
[null,null,null,null,null,null,null,null,"中村","名古屋支社　　　契約グループ","100.Nw-eigyo@chuden.co.jp","〒460-8310　名古屋市中区千代田2-12-14"]
[null,null,null,null,null,null,null,null,"津島","名古屋支社　　　契約グループ","100.Nw-eigyo@chuden.co.jp","〒460-8310　名古屋市中区千代田2-12-14"]
[null,null,null,null,null,null,null,null,"緑","名古屋支社　　　契約グループ","100.Nw-eigyo@chuden.co.jp","〒460-8310　名古屋市中区千代田2-12-14"]
[null,null,null,null,null,null,null,null,"天白","名古屋支社　　　契約グループ","100.Nw-eigyo@chuden.co.jp","〒460-8310　名古屋市中区千代田2-12-14"]
[null,null,null,null,null,null,null,null,"半田","名古屋支社　　　契約グループ","100.Nw-eigyo@chuden.co.jp","〒460-8310　名古屋市中区千代田2-12-14"]
[null,null,null,null,null,null,null,null,"常滑","名古屋支社　　　契約グループ","100.Nw-eigyo@chuden.co.jp","〒460-8310　名古屋市中区千代田2-12-14"]
[null,null,null,null,null,null,null,null,"小牧","名古屋支社　　　契約グループ","100.Nw-eigyo@chuden.co.jp","〒460-8310　名古屋市中区千代田2-12-14"]
[null,null,null,null,null,null,null,null,"春日井","名古屋支社　　　契約グループ","100.Nw-eigyo@chuden.co.jp","〒460-8310　名古屋市中区千代田2-12-14"]
[null,null,null,null,null,null,null,null,"一宮","名古屋支社　　　契約グループ","100.Nw-eigyo@chuden.co.jp","〒460-8310　名古屋市中区千代田2-12-14"]
[null,null,null,null,null,null,null,null,"静岡","静岡支社　　契約グループ","200.Nw-eigyo@chuden.co.jp","〒422-8006　静岡市駿河区曲金6-3-38"]
[null,null,null,null,null,null,null,null,"清水","静岡支社　　契約グループ","200.Nw-eigyo@chuden.co.jp","〒422-8006　静岡市駿河区曲金6-3-38"]
[null,null,null,null,null,null,null,null,"藤枝","静岡支社　　契約グループ","200.Nw-eigyo@chuden.co.jp","〒422-8006　静岡市駿河区曲金6-3-38"]
[null,null,null,null,null,null,null,null,"島田","静岡支社　　契約グループ","200.Nw-eigyo@chuden.co.jp","〒422-8006　静岡市駿河区曲金6-3-38"]
[null,null,null,null,null,null,null,null,"浜松","静岡支社　　契約グループ","200.Nw-eigyo@chuden.co.jp","〒422-8006　静岡市駿河区曲金6-3-38"]
[null,null,null,null,null,null,null,null,"浜北","静岡支社　　契約グループ","200.Nw-eigyo@chuden.co.jp","〒422-8006　静岡市駿河区曲金6-3-38"]
[null,null,null,null,null,null,null,null,"天竜","静岡支社　　契約グループ","200.Nw-eigyo@chuden.co.jp","〒422-8006　静岡市駿河区曲金6-3-38"]
[null,null,null,null,null,null,null,null,"掛川","静岡支社　　契約グループ","200.Nw-eigyo@chuden.co.jp","〒422-8006　静岡市駿河区曲金6-3-38"]
[null,null,null,null,null,null,null,null,"磐田","静岡支社　　契約グループ","200.Nw-eigyo@chuden.co.jp","〒422-8006　静岡市駿河区曲金6-3-38"]
[null,null,null,null,null,null,null,null,"三重","三重支社　　　契約グループ","300.Nw-eigyo@chuden.co.jp","〒514-8558　津市丸之内2-21"]
[null,null,null,null,null,null,null,null,"伊賀","三重支社　　　契約グループ","300.Nw-eigyo@chuden.co.jp","〒514-8558　津市丸之内2-21"]
[null,null,null,null,null,null,null,null,"名張","三重支社　　　契約グループ","300.Nw-eigyo@chuden.co.jp","〒514-8558　津市丸之内2-21"]
[null,null,null,null,null,null,null,null,"松阪","三重支社　　　契約グループ","300.Nw-eigyo@chuden.co.jp","〒514-8558　津市丸之内2-21"]
[null,null,null,null,null,null,null,null,"大台","三重支社　　　契約グループ","300.Nw-eigyo@chuden.co.jp","〒514-8558　津市丸之内2-21"]
[null,null,null,null,null,null,null,null,"尾鷲","三重支社　　　契約グループ","300.Nw-eigyo@chuden.co.jp","〒514-8558　津市丸之内2-21"]
[null,null,null,null,null,null,null,null,"伊勢","三重支社　　　契約グループ","300.Nw-eigyo@chuden.co.jp","〒514-8558　津市丸之内2-21"]
[null,null,null,null,null,null,null,null,"志摩","三重支社　　　契約グループ","300.Nw-eigyo@chuden.co.jp","〒514-8558　津市丸之内2-21"]
[null,null,null,null,null,null,null,null,"四日市","三重支社　　　契約グループ","300.Nw-eigyo@chuden.co.jp","〒514-8558　津市丸之内2-21"]
[null,null,null,null,null,null,null,null,"桑名","三重支社　　　契約グループ","300.Nw-eigyo@chuden.co.jp","〒514-8558　津市丸之内2-21"]
[null,null,null,null,null,null,null,null,"鈴鹿","三重支社　　　契約グループ","300.Nw-eigyo@chuden.co.jp","〒514-8558　津市丸之内2-21"]
[null,null,null,null,null,null,null,null,"岐阜","岐阜支社　　契約グループ","400.Nw-eigyo@chuden.co.jp","〒500-8702　岐阜市美江寺町2-5"]
[null,null,null,null,null,null,null,null,"各務原","岐阜支社　　契約グループ","400.Nw-eigyo@chuden.co.jp","〒500-8702　岐阜市美江寺町2-5"]
[null,null,null,null,null,null,null,null,"大垣","岐阜支社　　契約グループ","400.Nw-eigyo@chuden.co.jp","〒500-8702　岐阜市美江寺町2-5"]
[null,null,null,null,null,null,null,null,"揖斐川","岐阜支社　　契約グループ","400.Nw-eigyo@chuden.co.jp","〒500-8702　岐阜市美江寺町2-5"]
[null,null,null,null,null,null,null,null,"加茂","岐阜支社　　契約グループ","400.Nw-eigyo@chuden.co.jp","〒500-8702　岐阜市美江寺町2-5"]
[null,null,null,null,null,null,null,null,"関","岐阜支社　　契約グループ","400.Nw-eigyo@chuden.co.jp","〒500-8702　岐阜市美江寺町2-5"]
[null,null,null,null,null,null,null,null,"八幡","岐阜支社　　契約グループ","400.Nw-eigyo@chuden.co.jp","〒500-8702　岐阜市美江寺町2-5"]
[null,null,null,null,null,null,null,null,"高山","岐阜支社　　契約グループ","400.Nw-eigyo@chuden.co.jp","〒500-8702　岐阜市美江寺町2-5"]
[null,null,null,null,null,null,null,null,"萩原","岐阜支社　　契約グループ","400.Nw-eigyo@chuden.co.jp","〒500-8702　岐阜市美江寺町2-5"]
[null,null,null,null,null,null,null,null,"多治見","岐阜支社　　契約グループ","400.Nw-eigyo@chuden.co.jp","〒500-8702　岐阜市美江寺町2-5"]
[null,null,null,null,null,null,null,null,"中津川","岐阜支社　　契約グループ","400.Nw-eigyo@chuden.co.jp","〒500-8702　岐阜市美江寺町2-5"]
[null,null,null,null,null,null,null,null,"長野","長野支社　　契約グループ","500.Nw-eigyo@chuden.co.jp","〒380-0805　長野市柳町18"]
[null,null,null,null,null,null,null,null,"飯山","長野支社　　契約グループ","500.Nw-eigyo@chuden.co.jp","〒380-0805　長野市柳町18"]
[null,null,null,null,null,null,null,null,"篠ノ井","長野支社　　契約グループ","500.Nw-eigyo@chuden.co.jp","〒380-0805　長野市柳町18"]
[null,null,null,null,null,null,null,null,"上田","長野支社　　契約グループ","500.Nw-eigyo@chuden.co.jp","〒380-0805　長野市柳町18"]
[null,null,null,null,null,null,null,null,"佐久","長野支社　　契約グループ","500.Nw-eigyo@chuden.co.jp","〒380-0805　長野市柳町18"]
[null,null,null,null,null,null,null,null,"軽井沢","長野支社　　契約グループ","500.Nw-eigyo@chuden.co.jp","〒380-0805　長野市柳町18"]
[null,null,null,null,null,null,null,null,"松本","松本支社　　契約グループ","530.Nw-eigyo@chuden.co.jp","〒390-8506　長野県松本市埋橋1-5-3"]
[null,null,null,null,null,null,null,null,"木曽福島","松本支社　　契約グループ","530.Nw-eigyo@chuden.co.jp","〒390-8506　長野県松本市埋橋1-5-3"]
[null,null,null,null,null,null,null,null,"安曇野","長野支社　　契約グループ","500.Nw-eigyo@chuden.co.jp","〒380-0805　長野市柳町18"]
[null,null,null,null,null,null,null,null,"大町","長野支社　　契約グループ","500.Nw-eigyo@chuden.co.jp","〒380-0805　長野市柳町18"]
[null,null,null,null,null,null,null,null,"諏訪","松本支社　　契約グループ","530.Nw-eigyo@chuden.co.jp","〒390-8506　長野県松本市埋橋1-5-3"]
[null,null,null,null,null,null,null,null,"飯田","松本支社　　契約グループ","530.Nw-eigyo@chuden.co.jp","〒390-8506　長野県松本市埋橋1-5-3"]
[null,null,null,null,null,null,null,null,"伊那","松本支社　　契約グループ","530.Nw-eigyo@chuden.co.jp","〒390-8506　長野県松本市埋橋1-5-3"]
[null,null,null,null,null,null,null,null,"岡崎","岡崎支社　　契約グループ","600.Nw-eigyo@chuden.co.jp","〒444-8606　岡崎市戸崎町字大道東7"]
[null,null,null,null,null,null,null,null,"西尾","岡崎支社　　契約グループ","600.Nw-eigyo@chuden.co.jp","〒444-8606　岡崎市戸崎町字大道東7"]
[null,null,null,null,null,null,null,null,"刈谷","岡崎支社　　契約グループ","600.Nw-eigyo@chuden.co.jp","〒444-8606　岡崎市戸崎町字大道東7"]
[null,null,null,null,null,null,null,null,"豊田","岡崎支社　　契約グループ","600.Nw-eigyo@chuden.co.jp","〒444-8606　岡崎市戸崎町字大道東7"]
[null,null,null,null,null,null,null,null,"豊橋","岡崎支社　　契約グループ","600.Nw-eigyo@chuden.co.jp","〒444-8606　岡崎市戸崎町字大道東7"]
[null,null,null,null,null,null,null,null,"田原","岡崎支社　　契約グループ","600.Nw-eigyo@chuden.co.jp","〒444-8606　岡崎市戸崎町字大道東7"]
[null,null,null,null,null,null,null,null,"豊川","岡崎支社　　契約グループ","600.Nw-eigyo@chuden.co.jp","〒444-8606　岡崎市戸崎町字大道東7"]
[null,null,null,null,null,null,null,null,"新城","岡崎支社　　契約グループ","600.Nw-eigyo@chuden.co.jp","〒444-8606　岡崎市戸崎町字大道東7"]